bitfinex/quotes_BTCUSD_20240815
["timestamp","ask_amount","ask_price","bid_price","bid_amount"]
[1723739281701,0.023,59866.0,59862.0,0.52395082]
[1723739281866,0.023,59866.0,59862.0,0.51995082]
[1723739282074,0.023,59868.0,59862.0,0.52295082]
[1723739282394,0.190034,59868.0,59862.0,0.51895082]
[1723739282890,0.190034,59868.0,59862.0,0.52195082]
[1723739283311,0.190034,59868.0,59862.0,0.51895082]
[1723739283715,0.190034,59868.0,59862.0,0.52195082]
[1723739286983,0.023,59868.0,59862.0,0.85605182]
[1723739294067,0.1341,59880.0,59862.0,2.01592524]
[1723739294253,0.57564533,59884.0,59862.0,2.01592524]
[1723739294254,0.00551774,59879.0,59862.0,2.01592524]
[1723739294450,0.66304533,59884.0,59862.0,2.01592524]
[1723739294451,0.00551774,59880.0,59862.0,2.01592524]
[1723739294629,0.00551774,59880.0,59862.0,2.80002624]
[1723739294828,0.00551774,59883.0,59862.0,2.46292524]
[1723739295032,0.00551774,59882.0,59862.0,2.46807582]
[1723739295232,0.00551774,59883.0,59880.0,0.944302]
[1723739295740,0.00551774,59884.0,59880.0,0.95900926]
[1723739296280,0.01027,59881.0,59880.0,0.96000926]
[1723739296696,0.00827,59881.0,59880.0,0.95900926]
[1723739296897,0.00827,59881.0,59880.0,0.51570826]
[1723739297097,0.00827,59881.0,59880.0,0.52070826]
[1723739297474,0.03127,59881.0,59880.0,0.18670726]
[1723739297731,0.08418746,59881.0,59880.0,0.01470726]
[1723739297976,0.08418746,59881.0,59880.0,0.002]
[1723739298145,0.08418746,59881.0,59880.0,0.18770726]
[1723739298288,0.16867063,59881.0,59880.0,0.02070726]
[1723739298489,0.33566763,59881.0,59880.0,0.002]
[1723739298695,0.16867063,59881.0,59880.0,0.003]
[1723739298890,0.16867063,59881.0,59880.0,0.01560622]
[1723739299174,0.08418746,59881.0,59880.0,0.01560622]
[1723739299375,0.08418746,59881.0,59880.0,0.01360622]
[1723739299589,0.08418746,59881.0,59880.0,0.01260622]
[1723739299760,0.08418746,59881.0,59880.0,0.17960622]
[1723739300167,0.03678746,59881.0,59880.0,0.17960622]
[1723739300373,0.03678746,59881.0,59880.0,0.51360722]
[1723739300579,0.03678746,59881.0,59880.0,0.17960622]
[1723739300813,0.0367875,59881.0,59880.0,0.17960622]
[1723739300992,0.0367875,59881.0,59880.0,0.51360722]
[1723739301191,0.0367875,59881.0,59880.0,0.84760822]
[1723739301419,0.03127,59881.0,59880.0,0.84760822]
[1723739301754,0.03127,59881.0,59880.0,0.51360722]
[1723739302070,0.03127,59881.0,59880.0,0.51460722]
[1723739302486,0.03127,59881.0,59880.0,0.84960822]
[1723739302686,0.03127,59881.0,59880.0,0.85460822]
[1723739302925,0.03127,59881.0,59880.0,0.52060722]
[1723739303141,0.03678725,59881.0,59880.0,0.51860722]
[1723739303392,0.03127,59881.0,59880.0,0.52360722]
[1723739303847,0.03127,59881.0,59880.0,1.53356376]
[1723739304082,0.00827,59881.0,59880.0,1.68692014]
[1723739304530,0.00827,59881.0,59880.0,1.53356376]
[1723739304982,0.00827,59881.0,59880.0,1.52856376]
[1723739305431,0.03127,59881.0,59880.0,1.53556376]
[1723739306346,0.03127,59881.0,59880.0,1.53056376]
[1723739306498,0.03127,59881.0,59880.0,1.53856376]
[1723739308412,0.00827,59881.0,59880.0,1.53856376]
[1723739311619,0.00827,59881.0,59880.0,1.20456276]
[1723739311820,0.20517,59881.0,59880.0,0.02760622]
[1723739312073,0.20517,59881.0,59880.0,0.19460622]
[1723739312208,0.20517,59881.0,59880.0,0.02760622]
[1723739314072,1.1654714,59881.0,59880.0,0.02760622]
[1723739314293,1.21838878,59881.0,59880.0,0.02760622]
[1723739314455,1.21838878,59881.0,59880.0,0.015]
[1723739314658,1.55238378,59881.0,59880.0,0.015]
[1723739315109,1.55238378,59881.0,59880.0,0.008]
[1723739315651,1.55238378,59881.0,59880.0,0.009]
[1723739315859,1.55238378,59881.0,59880.0,0.008]
[1723739316004,1.55238378,59881.0,59880.0,0.001]
[1723739316440,1.55238378,59881.0,59880.0,0.003]
[1723739316615,1.49197173,59881.0,59880.0,0.003]
[1723739316814,1.49197173,59881.0,59880.0,0.001]
[1723739317214,1.49297173,59881.0,59880.0,0.002]
[1723739317446,0.01478738,59881.0,59880.0,0.002]
[1723739317618,0.00927,59881.0,59880.0,0.503001]
[1723739317999,0.00927,59881.0,59880.0,0.18370726]
[1723739318202,0.00927,59881.0,59880.0,0.01670726]
[1723739318404,0.00927,59881.0,59880.0,0.51670826]
[1723739318622,0.00927,59881.0,59880.0,0.85170926]
[1723739318820,0.00927,59881.0,59880.0,1.4658648]
[1723739319024,0.00927,59881.0,59880.0,1.4648648]
[1723739319688,0.00827,59881.0,59880.0,1.4638648]
[1723739320090,0.00927,59881.0,59880.0,1.1308638]
[1723739320391,0.03227,59881.0,59880.0,1.1308638]
[1723739320611,0.03127,59881.0,59880.0,1.1298638]
[1723739320736,0.03127,59881.0,59880.0,1.1388638]
[1723739321402,0.03127,59881.0,59880.0,1.1468638]
[1723739324223,0.03127,59881.0,59880.0,0.8128628]
[1723739324431,0.03127,59881.0,59880.0,0.03170726]
[1723739324943,0.198267,59881.0,59880.0,0.03170726]
[1723739325533,0.03127,59881.0,59880.0,0.03170726]
[1723739325966,0.198267,59881.0,59880.0,0.03170726]
[1723739326144,0.03678696,59881.0,59880.0,0.03170726]
[1723739326400,0.20378396,59881.0,59880.0,0.03170726]
[1723739326581,0.53777896,59881.0,59880.0,0.03170726]
[1723739327237,0.53777896,59881.0,59880.0,0.02270726]
[1723739327648,0.20378396,59881.0,59880.0,0.02270726]
[1723739327867,0.20378396,59881.0,59880.0,0.01470726]
[1723739328069,0.20378396,59881.0,59880.0,0.02070726]
[1723739328070,0.53777896,59881.0,59880.0,0.02070726]
[1723739328222,0.53777896,59881.0,59880.0,0.006]
[1723739328432,0.53777896,59881.0,59880.0,0.02070726]
[1723739329638,0.03678696,59881.0,59880.0,0.66770826]
[1723739329872,0.03127,59881.0,59880.0,1.00170926]
[1723739330080,0.00827,59881.0,59880.0,1.1732638]
[1723739331428,0.03127,59881.0,59880.0,1.1732638]
[1723739332842,0.03127,59881.0,59880.0,1.5072648]
[1723739335130,0.03077,59881.0,59880.0,1.5072648]
[1723739335967,0.03077,59881.0,59880.0,0.10140726]
[1723739336194,0.197767,59881.0,59880.0,0.02070726]
[1723739336397,0.531762,59881.0,59880.0,0.02070726]
[1723739336601,0.197767,59881.0,59880.0,0.02070726]
[1723739337012,0.20328384,59881.0,59880.0,0.02070726]
[1723739337404,0.53727884,59881.0,59880.0,0.02070726]
[1723739337891,0.03628684,59881.0,59880.0,0.02070726]
[1723739338093,0.20328384,59881.0,59880.0,0.02070726]
[1723739338499,0.20328421,59881.0,59880.0,0.02070726]
[1723739338961,0.2032842,59881.0,59880.0,0.02070726]
[1723739339207,0.5372792,59881.0,59880.0,0.02070726]
[1723739339905,0.2032842,59881.0,59880.0,0.02070726]
[1723739340340,0.0362872,59881.0,59880.0,0.02070726]
[1723739340532,0.0362872,59881.0,59880.0,0.10580726]
[1723739340857,0.0362872,59881.0,59880.0,0.17000726]
[1723739341061,0.2032842,59881.0,59880.0,0.17000726]
[1723739341304,0.0362872,59881.0,59880.0,0.33700726]
[1723739341717,0.0362872,59881.0,59880.0,0.17000726]
[1723739342259,0.0362872,59881.0,59880.0,0.33700726]
[1723739342461,0.0362872,59881.0,59880.0,1.1765638]
[1723739342888,0.03077,59881.0,59880.0,1.5105648]
[1723739343063,0.03077,59881.0,59880.0,1.1765638]
[1723739344142,0.03077,59881.0,59880.0,1.5105648]
[1723739345208,0.03077,59881.0,59880.0,1.68211934]
[1723739345418,0.03077,59881.0,59880.0,1.5105648]
[1723739346735,0.03077,59881.0,59880.0,1.56023403]
[1723739347734,0.02951083,59881.0,59880.0,1.56023403]
[1723739348988,0.02951083,59881.0,59880.0,1.5105648]
[1723739349185,0.00651083,59881.0,59880.0,1.68211934]
[1723739349623,0.00651083,59881.0,59880.0,2.79636987]
[1723739350047,0.00651083,59881.0,59880.0,2.92060123]
[1723739350471,0.00651083,59881.0,59880.0,3.12737087]
[1723739350680,0.00651083,59881.0,59880.0,3.23137087]
[1723739350681,1e-08,59881.0,59880.0,3.23137087]
[1723739350884,1e-08,59881.0,59880.0,3.38044851]
[1723739351752,0.00806,59888.0,59887.0,1.646529]
[1723739351949,0.00806,59888.0,59887.0,2.73298597]
[1723739352150,0.00806,59888.0,59887.0,2.7840715]
[1723739353198,0.00806,59888.0,59887.0,2.71868746]
[1723739353398,0.00806,59888.0,59887.0,2.69387095]
[1723739353592,0.00806,59888.0,59887.0,1.97884378]
[1723739353891,0.00806,59888.0,59887.0,2.01765942]
[1723739354094,0.00806,59888.0,59887.0,1.9928441]
[1723739354285,0.00806,59888.0,59887.0,1.9788441]
[1723739354418,0.00806,59888.0,59887.0,1.9593641]
[1723739354622,0.00806,59888.0,59887.0,1.5793641]
[1723739354829,0.00806,59888.0,59887.0,1.56535542]
[1723739355046,0.00806,59888.0,59887.0,1.55135542]
[1723739355271,0.00806,59888.0,59887.0,1.57935542]
[1723739355448,0.00806,59888.0,59887.0,1.56535542]
[1723739355849,0.00806,59888.0,59887.0,1.57935542]
[1723739357057,0.03106,59888.0,59887.0,1.57935542]
[1723739357851,0.03106,59888.0,59887.0,1.52972707]
[1723739360606,0.03106,59888.0,59887.0,1.70128161]
[1723739361766,0.03106,59888.0,59887.0,1.52972707]
[1723739362656,0.03106,59888.0,59887.0,1.84576507]
[1723739362989,0.03106,59888.0,59887.0,1.78346507]
[1723739363190,0.03106,59888.0,59887.0,1.27794853]
[1723739363378,0.03106,59888.0,59887.0,0.04560553]
[1723739363379,0.751694,59888.0,59887.0,0.04560553]
[1723739363572,1.17111149,59888.0,59887.0,0.028]
[1723739363795,0.84267214,59888.0,59887.0,0.028]
[1723739364239,0.75721065,59888.0,59887.0,0.02867127]
[1723739364447,0.75721065,59888.0,59887.0,0.016]
[1723739364448,0.42325465,59888.0,59887.0,0.016]
[1723739364644,0.75721065,59888.0,59887.0,0.03067127]
[1723739364844,0.75721065,59888.0,59887.0,0.01467127]
[1723739365052,0.166983,59887.0,59883.0,0.166991]
[1723739365258,0.189984,59886.0,59883.0,0.166992]
[1723739365913,0.023,59886.0,59883.0,0.166992]
[1723739366124,0.023,59886.0,59885.0,0.577959]
[1723739366324,0.023,59887.0,59886.0,0.166983]
[1723739366514,0.02851668,59887.0,59886.0,0.166983]
[1723739366719,0.02851668,59887.0,59883.0,0.33398]
[1723739366878,0.023,59887.0,59885.0,0.166984]
[1723739367351,0.026,59887.0,59886.0,0.01467641]
[1723739367531,0.026,59887.0,59886.0,0.57489025]
[1723739367787,0.023,59887.0,59886.0,0.50095]
[1723739368039,0.023,59887.0,59886.0,0.8525287]
[1723739368273,0.00806,59888.0,59886.0,0.26616624]
[1723739368483,0.00806,59888.0,59887.0,1.46553616]
[1723739368697,0.00806,59888.0,59887.0,1.48314169]
[1723739369576,0.00806,59888.0,59887.0,1.42292707]
[1723739369908,0.03106,59888.0,59887.0,1.42292707]
[1723739371160,0.03106,59888.0,59887.0,1.42392707]
[1723739372983,0.00806,59888.0,59887.0,1.83508907]
[1723739373186,0.00806,59888.0,59887.0,2.34060561]
[1723739373540,0.00806,59888.0,59887.0,2.43508907]
[1723739373958,0.00806,59888.0,59887.0,2.46756907]
[1723739374334,0.00806,59888.0,59887.0,2.48156907]
[1723739375157,0.00806,59888.0,59887.0,2.56756907]
[1723739375396,0.00806,59888.0,59887.0,2.64519196]
[1723739375600,0.00806,59888.0,59887.0,2.59556907]
[1723739375808,0.00806,59888.0,59887.0,2.76712361]
[1723739378643,0.00515744,59888.0,59887.0,2.76712361]
[1723739378845,0.00515744,59888.0,59887.0,3.00108561]
[1723739379270,0.00515744,59888.0,59887.0,3.37126396]
[1723739380006,0.00515744,59888.0,59887.0,3.47050168]
[1723739381222,0.00515744,59888.0,59887.0,3.47250168]
[1723739381813,0.00515744,59888.0,59887.0,3.20250168]
[1723739382019,0.00515744,59888.0,59887.0,3.10126396]
[1723739382462,0.00515744,59888.0,59887.0,2.76730196]
[1723739382665,0.00515744,59888.0,59887.0,3.08730196]
[1723739383130,0.00515744,59888.0,59887.0,3.16174958]
[1723739383428,0.00515744,59888.0,59887.0,3.08730196]
[1723739383810,0.00515744,59888.0,59887.0,3.08729811]
[1723739385079,0.00515744,59888.0,59887.0,3.18729811]
[1723739385331,0.00515744,59888.0,59887.0,2.77364357]
[1723739385541,0.07395744,59888.0,59887.0,1.05206507]
[1723739385748,0.02815744,59888.0,59887.0,1.05206507]
[1723739386177,0.02815744,59888.0,59887.0,1.03806507]
[1723739386426,0.02815744,59888.0,59887.0,1.35802707]
[1723739386629,0.02815744,59888.0,59887.0,1.36602707]
[1723739386837,0.02815744,59888.0,59887.0,1.37302707]
[1723739387041,0.02815744,59888.0,59887.0,1.35802707]
[1723739387447,0.02815744,59888.0,59887.0,1.36502707]
[1723739387800,0.02815744,59888.0,59887.0,1.35802707]
[1723739388005,0.02815744,59888.0,59887.0,1.44322707]
[1723739388883,0.00515744,59888.0,59887.0,1.44322707]
[1723739389097,0.00515744,59888.0,59887.0,1.44922707]
[1723739389713,0.00515744,59888.0,59887.0,1.49286564]
[1723739389918,0.00515744,59888.0,59887.0,1.50286564]
[1723739390128,0.02815744,59888.0,59887.0,1.50286564]
[1723739390749,0.02815744,59888.0,59887.0,1.42766564]
[1723739391335,0.02815744,59888.0,59887.0,1.09370364]
[1723739394224,0.02815744,59888.0,59887.0,1.04497477]
[1723739394396,0.02815744,59888.0,59887.0,1.37893677]
[1723739395221,0.02815744,59888.0,59887.0,1.45344165]
[1723739395650,0.02815744,59888.0,59887.0,1.11947965]
[1723739396078,0.02815744,59888.0,59887.0,1.18567477]
[1723739396290,0.02815744,59888.0,59887.0,1.8898227]
[1723739397222,0.02815744,59888.0,59887.0,1.88982254]
[1723739397849,0.00515744,59888.0,59887.0,1.88982254]
[1723739398114,0.00515744,59888.0,59887.0,2.39318355]
[1723739398314,0.00515744,59888.0,59887.0,3.07253579]
[1723739398522,0.00515744,59888.0,59887.0,2.97318355]
[1723739398756,0.00515744,59888.0,59887.0,3.09737385]
[1723739398996,0.00515744,59888.0,59887.0,3.07318355]
[1723739399674,0.00515744,59888.0,59887.0,3.44062555]
[1723739399880,0.00515744,59888.0,59887.0,3.10666355]
[1723739400832,0.00515744,59888.0,59887.0,3.43062555]
[1723739401063,0.00515744,59888.0,59887.0,3.11066355]
[1723739401976,0.00515744,59888.0,59887.0,3.10066355]
[1723739402199,0.00515744,59888.0,59887.0,3.44862555]
[1723739403018,0.00515744,59888.0,59887.0,3.11466355]
[1723739404243,0.00515744,59888.0,59887.0,3.23883963]
[1723739404731,0.00515744,59888.0,59887.0,3.57280163]
[1723739404929,0.00515744,59888.0,59887.0,3.23883963]
[1723739405396,0.00515744,59888.0,59887.0,3.57280163]
[1723739405812,0.00515744,59888.0,59887.0,3.23883963]
[1723739406213,0.00515744,59888.0,59887.0,3.06883963]
[1723739406775,0.00515744,59888.0,59887.0,3.06880348]
[1723739407815,0.00515744,59888.0,59887.0,2.73484148]
[1723739408022,0.00515744,59888.0,59887.0,2.76484148]
[1723739408171,0.00515744,59888.0,59887.0,2.59544247]
[1723739408365,0.00515744,59888.0,59887.0,2.33781137]
[1723739408572,0.00515744,59888.0,59887.0,2.43710692]
[1723739408775,0.00515744,59888.0,59887.0,2.80454892]
[1723739408980,0.00515744,59888.0,59887.0,2.97610346]
[1723739409611,0.00515744,59888.0,59887.0,3.07610346]
[1723739409832,0.00515744,59888.0,59887.0,2.97680791]
[1723739410481,0.00515744,59888.0,59887.0,3.10095901]
[1723739411938,0.00515744,59888.0,59887.0,3.07095901]
[1723739412282,0.00515744,59888.0,59887.0,2.94680791]
[1723739413948,0.00515744,59888.0,59887.0,2.40781137]
[1723739414566,0.00515744,59888.0,59887.0,2.74177337]
[1723739415001,0.00515744,59888.0,59887.0,2.77525337]
[1723739415997,0.00515744,59888.0,59887.0,2.75525337]
[1723739416340,0.00515744,59888.0,59887.0,2.42129137]
[1723739416539,0.00515744,59888.0,59887.0,2.59284591]
[1723739416764,0.00515744,59888.0,59887.0,2.22267131]
[1723739416965,0.00515744,59888.0,59887.0,2.92681158]
[1723739417145,0.00515744,59888.0,59887.0,2.32741504]
[1723739419578,0.00376709,59888.0,59887.0,2.32741504]
[1723739420991,0.00376709,59888.0,59887.0,1.85711504]
[1723739421608,0.00376709,59888.0,59887.0,1.42315304]
[1723739421809,0.00376709,59888.0,59887.0,1.40915304]
[1723739422236,0.00376709,59888.0,59887.0,1.42315304]
[1723739422443,0.0035661,59888.0,59887.0,1.40915304]
[1723739422652,0.0035661,59888.0,59887.0,1.39515304]
[1723739422852,0.0035661,59888.0,59887.0,1.40915304]
[1723739423610,0.0265661,59888.0,59887.0,1.39515304]
[1723739423832,0.0265661,59888.0,59887.0,1.90066958]
[1723739424036,0.0035661,59888.0,59887.0,1.55135304]
[1723739424240,0.0035661,59888.0,59887.0,1.88531504]
[1723739424655,0.0035661,59888.0,59887.0,3.10927704]
[1723739424984,0.0035661,59888.0,59887.0,3.10828002]
[1723739425100,0.0035661,59888.0,59887.0,3.11428002]
[1723739425299,0.0035661,59888.0,59887.0,3.28583456]
[1723739425504,0.0035661,59888.0,59887.0,3.27983456]
[1723739425707,0.0035661,59888.0,59887.0,3.27283456]
[1723739425929,0.0035661,59888.0,59887.0,3.79908832]
[1723739426168,0.0035661,59888.0,59887.0,3.819899]
[1723739426377,0.0035661,59888.0,59887.0,3.808899]
[1723739426873,0.0035661,59888.0,59887.0,3.820899]
[1723739427114,0.0035661,59888.0,59887.0,3.30264524]
[1723739427325,0.0035661,59888.0,59887.0,3.45187368]
[1723739427524,0.0035661,59888.0,59887.0,3.48535368]
[1723739428161,0.0035661,59888.0,59887.0,3.47335368]
[1723739428372,0.0035661,59888.0,59887.0,3.67064544]
[1723739428537,0.0035661,59888.0,59887.0,3.13139168]
[1723739428741,0.0035661,59888.0,59887.0,2.61198199]
[1723739428943,0.0035661,59888.0,59887.0,2.97194399]
[1723739429170,0.0035661,59888.0,59887.0,2.63798199]
[1723739429392,0.0035661,59888.0,59887.0,2.99615813]
[1723739429812,0.0035661,59888.0,59887.0,3.01015813]
[1723739429961,0.0035661,59888.0,59887.0,3.34412013]
[1723739430667,0.0035661,59888.0,59887.0,3.67808213]
[1723739431554,0.0035661,59888.0,59887.0,3.66408213]
[1723739431790,0.0035661,59888.0,59887.0,3.65008213]
[1723739432017,0.0035661,59888.0,59887.0,3.34412013]
[1723739432383,0.0035661,59888.0,59887.0,3.33012013]
[1723739432519,0.0035661,59888.0,59887.0,2.89017813]
[1723739432716,0.0035661,59888.0,59887.0,2.83017813]
[1723739432919,0.0035661,59888.0,59887.0,2.47400199]
[1723739433128,0.0035661,59888.0,59887.0,2.30244745]
[1723739433750,0.0035661,59888.0,59887.0,2.22674745]
[1723739434583,0.0035661,59888.0,59887.0,2.21274745]
[1723739434800,0.0035661,59888.0,59887.0,2.19874745]
[1723739435001,0.0035661,59888.0,59887.0,2.21274745]
[1723739435203,0.0035661,59888.0,59887.0,2.22674745]
[1723739435561,0.0035661,59888.0,59887.0,1.39674745]
[1723739437575,0.0035661,59888.0,59887.0,1.47454745]
[1723739437695,0.0035661,59888.0,59887.0,1.80850945]
[1723739438143,0.0035661,59888.0,59887.0,1.47454745]
[1723739439002,0.0035661,59888.0,59887.0,1.39674745]
[1723739439152,0.0493661,59888.0,59887.0,1.05297477]
[1723739439979,0.0035661,59888.0,59887.0,1.37293677]
[1723739440595,0.0035661,59888.0,59887.0,1.03897477]
[1723739441006,0.0035661,59888.0,59887.0,1.04897477]
[1723739441528,0.0035661,59888.0,59887.0,1.03497477]
[1723739441864,0.0035661,59888.0,59887.0,1.04497477]
[1723739442037,0.0035661,59888.0,59887.0,1.8734451]
[1723739442393,0.0035661,59888.0,59887.0,1.04497477]
[1723739443229,0.0035661,59888.0,59887.0,1.12447477]
[1723739443423,0.0035661,59888.0,59887.0,1.45843677]
[1723739444003,0.0035661,59888.0,59887.0,1.12447477]
[1723739444204,0.0035661,59888.0,59887.0,1.04497477]
[1723739444625,0.2393441,59888.0,59887.0,0.03851523]
[1723739444884,0.44206374,59888.0,59887.0,0.03851523]
[1723739445104,0.44206374,59888.0,59881.0,0.0009097]
[1723739445105,0.834975,59882.0,59881.0,0.0009097]
[1723739445306,1.64263637,59882.0,59881.0,0.0009097]
[1723739445503,1.97662637,59882.0,59881.0,0.0009097]
[1723739445657,1.64263637,59882.0,59881.0,0.0009097]
[1723739445859,1.761887,59882.0,59881.0,0.0009097]
[1723739446273,1.786687,59882.0,59881.0,0.0009097]
[1723739446475,0.592922,59882.0,59863.0,0.51557332]
[1723739446674,0.1736,59876.0,59864.0,0.33409]
[1723739446852,0.25280027,59872.0,59864.0,0.01853204]
[1723739447212,0.00551683,59875.0,59866.0,0.334078]
[1723739447213,0.02851683,59871.0,59866.0,0.334078]
[1723739447480,0.0239,59870.0,59867.0,0.334071]
[1723739447663,0.02851683,59871.0,59867.0,0.01851353]
[1723739447664,0.023,59871.0,59867.0,0.01851353]
[1723739447885,0.023,59871.0,59868.0,0.334067]
[1723739448087,0.023,59874.0,59870.0,0.334057]
[1723739448287,0.023,59874.0,59873.0,0.16702]
[1723739448521,0.023,59874.0,59873.0,0.50106]
[1723739448725,0.0239,59879.0,59878.0,0.167006]
[1723739448940,0.002,59882.0,59881.0,0.500992]
[1723739449145,0.002,59882.0,59881.0,0.834987]
[1723739449343,0.002,59882.0,59881.0,0.51941914]
[1723739449789,0.002,59882.0,59881.0,1.02496868]
[1723739450017,0.002,59882.0,59881.0,1.10786868]
[1723739450260,0.0035661,59888.0,59887.0,0.834905]
[1723739450768,0.0035661,59888.0,59887.0,0.85329513]
[1723739450996,0.0035661,59888.0,59887.0,1.02484967]
[1723739451744,0.0035661,59888.0,59887.0,1.49469414]
[1723739451979,0.0035661,59888.0,59887.0,2.34551814]
[1723739452205,0.00100001,59888.0,59887.0,2.09083943]
[1723739452449,0.00100001,59888.0,59887.0,2.46088174]
[1723739452677,0.00100001,59888.0,59887.0,2.48573924]
[1723739452925,0.00100001,59888.0,59887.0,2.51921924]
[1723739453165,0.00100001,59888.0,59887.0,2.55373644]
[1723739453385,0.00100001,59888.0,59887.0,2.42993095]
[1723739453618,1e-08,59888.0,59887.0,2.54873644]
[1723739453870,1e-08,59888.0,59887.0,2.27929238]
[1723739454104,1e-08,59888.0,59887.0,1.88767367]
[1723739454105,0.00100001,59888.0,59887.0,1.88767367]
[1723739454315,0.00100001,59888.0,59887.0,2.5095721]
[1723739454529,1e-08,59888.0,59887.0,2.10270354]
[1723739454702,1e-08,59888.0,59887.0,2.49157611]
[1723739454903,0.00100001,59888.0,59887.0,2.50557611]
[1723739455374,0.00100001,59888.0,59887.0,2.92001811]
[1723739455576,0.00100001,59888.0,59887.0,3.30361073]
[1723739456016,0.00826,59896.0,59892.0,1.676183]
[1723739456223,0.00826,59896.0,59892.0,3.41305925]
[1723739456443,0.00826,59896.0,59892.0,3.40668036]
[1723739457080,0.00826,59896.0,59892.0,3.3077864]
[1723739457583,0.00826,59896.0,59892.0,3.40670158]
[1723739458199,0.00826,59896.0,59892.0,3.3077864]
[1723739458475,0.00927,59893.0,59892.0,3.42068574]
[1723739458810,0.00927,59893.0,59892.0,3.75461974]
[1723739459073,0.01027,59893.0,59892.0,3.44440384]
[1723739460423,0.00927,59893.0,59892.0,3.43040384]
[1723739460755,0.00927,59893.0,59892.0,3.3455045]
[1723739460888,0.01027,59893.0,59892.0,3.3455045]
[1723739461290,0.01027,59893.0,59892.0,3.44435991]
[1723739461522,0.01027,59893.0,59892.0,3.00435991]
[1723739461728,0.0017,59918.0,59892.0,3.00435991]
[1723739461729,0.0017,59918.0,59898.0,0.14]
[1723739461971,0.0017,59918.0,59908.0,0.640767]
[1723739462172,0.0017,59918.0,59908.0,1.87987203]
[1723739462377,0.0017,59918.0,59908.0,1.93600066]
[1723739462581,0.0017,59918.0,59908.0,2.1410352]
[1723739462813,0.0017,59918.0,59908.0,2.1904225]
[1723739462976,0.0017,59918.0,59908.0,2.5242675]
[1723739463154,0.0017,59918.0,59908.0,2.8581125]
[1723739463357,0.0017,59918.0,59908.0,2.8087252]
[1723739464190,0.08747727,59918.0,59908.0,0.70636317]
[1723739464436,0.08747727,59918.0,59903.0,0.3]
[1723739464437,0.037,59908.0,59898.0,0.008]
[1723739464583,0.037,59908.0,59891.0,0.0493873]
[1723739464584,0.08577727,59900.0,59899.0,0.18526313]
[1723739464965,0.08577727,59900.0,59899.0,0.01831613]
[1723739465389,0.25272127,59900.0,59899.0,0.01831613]
[1723739465585,0.10877727,59900.0,59882.0,0.0794]
[1723739465720,0.10877727,59900.0,59899.0,0.166947]
[1723739465933,0.10877727,59900.0,59899.0,0.18526313]
[1723739465934,0.023,59900.0,59899.0,0.18526313]
[1723739466136,0.037,59908.0,59900.0,0.166944]
[1723739466137,0.166933,59904.0,59900.0,0.166944]
[1723739466402,0.023,59903.0,59902.0,0.166939]
[1723739466635,0.023,59905.0,59899.0,0.01831613]
[1723739466838,0.023,59905.0,59900.0,0.166943]
[1723739466839,0.08577727,59902.0,59900.0,0.166943]
[1723739467008,0.001,59900.0,59899.0,0.001]
[1723739467347,0.168944,59900.0,59899.0,0.001]
[1723739467568,0.168944,59900.0,59893.0,0.333924]
[1723739467569,0.190944,59900.0,59894.0,0.333922]
[1723739467807,0.023,59899.0,59893.0,0.333924]
[1723739468012,0.023,59899.0,59898.0,0.50085]
[1723739468378,0.001,59900.0,59899.0,0.001]
[1723739468579,0.001,59900.0,59899.0,0.002]
[1723739468783,0.189942,59901.0,59899.0,0.001]
[1723739468784,0.023,59901.0,59899.0,0.001]
[1723739469111,0.18994,59902.0,59899.0,0.001]
[1723739469314,0.166942,59901.0,59899.0,0.001]
[1723739469514,0.023,59900.0,59899.0,0.001]
[1723739469871,0.166944,59900.0,59899.0,0.001]
[1723739470097,0.166944,59900.0,59893.0,0.001]
[1723739470098,0.166961,59894.0,59893.0,0.001]
[1723739470317,0.96881581,59894.0,59893.0,0.001]
[1723739470498,0.166999,59881.0,59872.0,0.334042]
[1723739470847,0.507587,59883.0,59871.0,0.33405]
[1723739471049,0.356991,59882.0,59872.0,0.334043]
[1723739471271,0.356991,59882.0,59869.0,0.0009097]
[1723739471272,0.08577727,59878.0,59869.0,0.0009097]
[1723739471486,0.2336,59877.0,59869.0,0.0009097]
[1723739471666,0.167017,59874.0,59870.0,0.167028]
[1723739471901,0.167017,59874.0,59869.0,0.0009097]
[1723739471902,0.023,59873.0,59871.0,0.167024]
[1723739472119,0.023,59873.0,59872.0,0.167022]
[1723739472339,0.023,59875.0,59869.0,0.0009097]
[1723739472540,0.037,59877.0,59874.0,0.167016]
[1723739472541,0.023,59876.0,59874.0,0.167016]
[1723739472744,0.023,59876.0,59875.0,0.167014]
[1723739472979,0.037,59882.0,59875.0,0.334026]
[1723739472980,0.023,59881.0,59875.0,0.334026]
[1723739473180,0.023,59881.0,59869.0,0.0009097]
[1723739473181,0.189998,59881.0,59876.0,0.167009]
[1723739473413,0.189998,59881.0,59872.0,0.334042]
[1723739473414,0.334001,59880.0,59874.0,0.167015]
[1723739473628,0.023,59879.0,59872.0,0.168021]
[1723739473847,0.08577727,59878.0,59875.0,0.001]
[1723739474050,0.174011,59876.0,59875.0,0.001]
[1723739474315,0.190012,59876.0,59870.0,0.334056]
[1723739474539,0.167013,59876.0,59869.0,0.0009097]
[1723739474773,0.190014,59875.0,59870.0,0.167025]
[1723739474977,0.190014,59875.0,59871.0,0.167025]
[1723739475204,0.023,59875.0,59871.0,0.167025]
[1723739475409,0.023,59877.0,59872.0,0.05019987]
[1723739475625,0.023,59877.0,59876.0,0.167011]
[1723739476057,0.023,59877.0,59876.0,0.835057]
[1723739476261,0.017,59878.0,59877.0,0.501027]
[1723739476481,0.017,59878.0,59877.0,1.169063]
[1723739476685,0.009,59878.0,59877.0,1.40321754]
[1723739477072,0.166969,59892.0,59879.0,0.334001]
[1723739477307,0.1,59893.0,59879.0,0.334001]
[1723739477308,0.08577727,59894.0,59891.0,0.166968]
[1723739477512,0.08577727,59894.0,59879.0,0.17155454]
[1723739477513,0.166973,59890.0,59879.0,0.17155454]
[1723739477717,0.08577727,59894.0,59885.0,0.33397]
[1723739477975,0.166971,59891.0,59887.0,0.166979]
[1723739478181,0.166968,59892.0,59887.0,0.166979]
[1723739478372,0.013,59892.0,59888.0,0.166978]
[1723739478663,0.013,59892.0,59889.0,0.166973]
[1723739478869,0.013,59892.0,59889.0,0.33395]
[1723739479068,0.013,59892.0,59889.0,0.166974]
[1723739479196,0.023,59891.0,59889.0,0.166974]
[1723739479597,0.023,59893.0,59889.0,0.166974]
[1723739479900,0.023,59893.0,59892.0,0.166967]